[Event "Titled Tuesday Blitz May 16 Late 2023"]
[White "Kev4444444444"]
[Black "Fan_Of_Chucky"]
[WhiteElo "2155"]
[BlackElo "2437"]
[Result "1-0"]
[Round "08"]
[TimeControl "180+2"]
[Date "2023.05.16"]
[WhiteClock "0:00:22"]
[BlackClock "0:00:10"]

1. e4 {[%clk 0:03:00]}  c5 {[%clk 0:02:59]} 2. c3 {[%clk 0:02:55]}  Nf6 {[%clk 0:02:58]} 3. e5 {[%clk 0:02:54]}  Nd5 {[%clk 0:02:58]} 4. d4 {[%clk 0:02:55]}  cxd4 {[%clk 0:02:55]} 5. Nf3 {[%clk 0:02:54]}  Nc6 {[%clk 0:02:53]} 6. cxd4 {[%clk 0:02:53]}  d6 {[%clk 0:02:53]} 7. Bc4 {[%clk 0:02:50]}  Nb6 {[%clk 0:02:54]} 8. Bb3 {[%clk 0:02:43]}  e6 {[%clk 0:02:54]} 9. O-O {[%clk 0:02:42]}  dxe5 {[%clk 0:02:48]} 10. dxe5 {[%clk 0:02:42]}  Qxd1 {[%clk 0:02:48]} 11. Rxd1 {[%clk 0:02:41]}  Be7 {[%clk 0:02:40]} 12. Nc3 {[%clk 0:02:41]}  a6 {[%clk 0:02:33]} 13. Ne4 {[%clk 0:02:28]}  O-O {[%clk 0:02:33]} 14. Nd6 {[%clk 0:02:20]}  Rd8 {[%clk 0:02:30]} 15. Be3 {[%clk 0:02:14]}  Nd7 {[%clk 0:02:26]} 16. Nc4 {[%clk 0:01:57]}  b5 {[%clk 0:02:12]} 17. Nb6 {[%clk 0:01:54]}  Rb8 {[%clk 0:02:05]} 18. Nxd7 {[%clk 0:01:44]}  Bxd7 {[%clk 0:02:06]} 19. a3 {[%clk 0:01:31]}  Be8 {[%clk 0:01:58]} 20. Rac1 {[%clk 0:01:26]}  Rxd1+ {[%clk 0:01:43]} 21. Rxd1 {[%clk 0:01:26]}  Rd8 {[%clk 0:01:44]} 22. Rxd8 {[%clk 0:01:23]}  Bxd8 {[%clk 0:01:44]} 23. Bc5 {[%clk 0:01:19]}  Be7 {[%clk 0:01:18]} 24. Bxe7 {[%clk 0:01:17]}  Nxe7 {[%clk 0:01:19]} 25. Ne1 {[%clk 0:00:52]}  Bc6 {[%clk 0:01:09]} 26. f4 {[%clk 0:00:43]}  Bd5 {[%clk 0:00:49]} 27. Bc2 {[%clk 0:00:39]}  Nc6 {[%clk 0:00:44]} 28. Nd3 {[%clk 0:00:37]}  Nd4 {[%clk 0:00:42]} 29. Bd1 {[%clk 0:00:37]}  a5 {[%clk 0:00:30]} 30. Kf2 {[%clk 0:00:37]}  Nc6 {[%clk 0:00:26]} 31. g3 {[%clk 0:00:35]}  f6 {[%clk 0:00:23]} 32. exf6 {[%clk 0:00:32]}  gxf6 {[%clk 0:00:24]} 33. Bf3 {[%clk 0:00:33]}  Bxf3 {[%clk 0:00:21]} 34. Kxf3 {[%clk 0:00:33]}  Kf7 {[%clk 0:00:21]} 35. Ke3 {[%clk 0:00:33]}  Ke7 {[%clk 0:00:14]} 36. Nc5 {[%clk 0:00:33]}  Kd6 {[%clk 0:00:12]} 37. Ne4+ {[%clk 0:00:33]}  Ke7 {[%clk 0:00:12]} 38. Nc3 {[%clk 0:00:33]}  b4 {[%clk 0:00:11]} 39. Ne4 {[%clk 0:00:32]}  bxa3 {[%clk 0:00:10]} 40. bxa3 {[%clk 0:00:33]}  Na7 {[%clk 0:00:08]} 41. Nc3 {[%clk 0:00:32]}  Kd6 {[%clk 0:00:06]} 42. Kd4 {[%clk 0:00:32]}  e5+ {[%clk 0:00:06]} 43. fxe5+ {[%clk 0:00:31]}  fxe5+ {[%clk 0:00:07]} 44. Kc4 {[%clk 0:00:31]}  Ke6 {[%clk 0:00:06]} 45. g4 {[%clk 0:00:31]}  Kf6 {[%clk 0:00:05]} 46. Kd5 {[%clk 0:00:30]}  Kg5 {[%clk 0:00:04]} 47. Kxe5 {[%clk 0:00:30]}  Kxg4 {[%clk 0:00:04]} 48. Kd6 {[%clk 0:00:30]}  Kh3 {[%clk 0:00:04]} 49. Kc7 {[%clk 0:00:30]}  a4 {[%clk 0:00:04]} 50. Kb7 {[%clk 0:00:30]}  Nb5 {[%clk 0:00:02]} 51. Nxb5 {[%clk 0:00:29]}  Kxh2 {[%clk 0:00:03]} 52. Nd4 {[%clk 0:00:29]}  Kg3 {[%clk 0:00:03]} 53. Nf5+ {[%clk 0:00:27]}  Kf4 {[%clk 0:00:02]} 54. Ng7 {[%clk 0:00:27]}  Ke5 {[%clk 0:00:01]} 55. Kb6 {[%clk 0:00:27]}  Kd5 {[%clk 0:00:01]} 56. Kb5 {[%clk 0:00:27]}  Kd6 {[%clk 0:00:01]} 57. Kxa4 {[%clk 0:00:25]}  Kc6 {[%clk 0:00:02]} 58. Kb4 {[%clk 0:00:24]}  Kb6 {[%clk 0:00:02]} 59. Nf5 {[%clk 0:00:24]}  Ka6 {[%clk 0:00:03]} 60. Kc4 {[%clk 0:00:21]}  h5 {[%clk 0:00:04]} 61. Kd3 {[%clk 0:00:19]}  Ka5 {[%clk 0:00:05]} 62. Nd4 {[%clk 0:00:19]}  Ka4 {[%clk 0:00:06]} 63. Nc2 {[%clk 0:00:18]}  h4 {[%clk 0:00:06]} 64. Ke3 {[%clk 0:00:19]}  h3 {[%clk 0:00:07]} 65. Kf3 {[%clk 0:00:19]}  h2 {[%clk 0:00:08]} 66. Kg2 {[%clk 0:00:20]}  h1=Q+ {[%clk 0:00:08]} 67. Kxh1 {[%clk 0:00:20]}  Kb3 {[%clk 0:00:09]} 68. Kg2 {[%clk 0:00:20]}  Ka4 {[%clk 0:00:10]} 69. Kf3 {[%clk 0:00:21]}  Kb3 {[%clk 0:00:11]} 70. Ke2 {[%clk 0:00:21]}  Kxc2 {[%clk 0:00:12]} 71. a4 {[%clk 0:00:22]}  Kb3 {[%clk 0:00:10]} 72. a5 {[%clk 0:00:22]} 1-0


[Site "https://www.chess.com"]

[Event "Titled Tuesday Blitz May 16 Late 2023"]
[White "Rangel, Daniel"]
[Black "Fishbein, Mitch"]
[WhiteFideId "2124475"]
[BlackFideId "30922917"]
[WhiteElo "2256"]
[BlackElo "1964"]
[Result "1-0"]
[Round "08"]
[TimeControl "180+2"]
[Date "2023.05.16"]
[WhiteClock "0:00:25"]
[BlackClock "0:00:00"]

1. e4 {[%clk 0:03:00]}  c5 {[%clk 0:02:56]} 2. Nf3 {[%clk 0:03:00]}  Nc6 {[%clk 0:02:55]} 3. d4 {[%clk 0:03:00]}  cxd4 {[%clk 0:02:55]} 4. Nxd4 {[%clk 0:03:01]}  e5 {[%clk 0:02:56]} 5. Nb5 {[%clk 0:03:01]}  d6 {[%clk 0:02:56]} 6. c4 {[%clk 0:03:01]}  Be6 {[%clk 0:02:55]} 7. N1c3 {[%clk 0:03:00]}  a6 {[%clk 0:02:56]} 8. Na3 {[%clk 0:03:00]}  g6 {[%clk 0:02:56]} 9. h4 {[%clk 0:02:59]}  Nf6 {[%clk 0:02:45]} 10. Be2 {[%clk 0:02:52]}  Bg7 {[%clk 0:02:44]} 11. h5 {[%clk 0:02:52]}  Nd4 {[%clk 0:02:37]} 12. h6 {[%clk 0:02:40]}  Bf8 {[%clk 0:02:37]} 13. Nc2 {[%clk 0:02:39]}  Nxe2 {[%clk 0:02:36]} 14. Qxe2 {[%clk 0:02:39]}  Rc8 {[%clk 0:02:35]} 15. Ne3 {[%clk 0:02:36]}  Be7 {[%clk 0:02:29]} 16. Ned5 {[%clk 0:02:29]}  Nxd5 {[%clk 0:02:27]} 17. exd5 {[%clk 0:02:25]}  Bd7 {[%clk 0:02:13]} 18. O-O {[%clk 0:02:15]}  O-O {[%clk 0:02:02]} 19. f4 {[%clk 0:02:06]}  exf4 {[%clk 0:02:01]} 20. Bxf4 {[%clk 0:02:03]}  Re8 {[%clk 0:01:28]} 21. Rae1 {[%clk 0:01:45]}  Bg5 {[%clk 0:01:13]} 22. Qf2 {[%clk 0:01:35]}  Rxe1 {[%clk 0:01:07]} 23. Rxe1 {[%clk 0:01:33]}  Rxc4 {[%clk 0:00:58]} 24. Bxd6 {[%clk 0:01:16]}  Bxh6 {[%clk 0:00:32]} 25. Be7 {[%clk 0:01:13]}  Qc8 {[%clk 0:00:24]} 26. Ne4 {[%clk 0:01:12]}  Rxe4 {[%clk 0:00:13]} 27. Rxe4 {[%clk 0:01:13]}  Qc1+ {[%clk 0:00:13]} 28. Re1 {[%clk 0:01:13]}  Qc4 {[%clk 0:00:08]} 29. d6 {[%clk 0:01:06]}  Bg7 {[%clk 0:00:07]} 30. Bf6 {[%clk 0:01:03]}  Qc6 {[%clk 0:00:03]} 31. Bxg7 {[%clk 0:01:02]}  Kxg7 {[%clk 0:00:03]} 32. Qd4+ {[%clk 0:01:03]}  Kg8 {[%clk 0:00:04]} 33. Re7 {[%clk 0:00:56]}  Qc1+ {[%clk 0:00:02]} 34. Kf2 {[%clk 0:00:53]}  Qc2+ {[%clk 0:00:02]} 35. Kg3 {[%clk 0:00:52]}  Qc6 {[%clk 0:00:02]} 36. Qf6 {[%clk 0:00:50]}  Be6 {[%clk 0:00:01]} 37. Rxe6 {[%clk 0:00:47]}  fxe6 {[%clk 0:00:02]} 38. Qxe6+ {[%clk 0:00:47]}  Kg7 {[%clk 0:00:02]} 39. Qe7+ {[%clk 0:00:47]}  Kg8 {[%clk 0:00:03]} 40. d7 {[%clk 0:00:46]}  Qc7+ {[%clk 0:00:04]} 41. Kf3 {[%clk 0:00:42]}  Qc6+ {[%clk 0:00:03]} 42. Ke3 {[%clk 0:00:40]}  Qb6+ {[%clk 0:00:03]} 43. Ke4 {[%clk 0:00:39]}  Qc6+ {[%clk 0:00:04]} 44. Ke5 {[%clk 0:00:38]}  Qb5+ {[%clk 0:00:03]} 45. Ke6 {[%clk 0:00:32]}  Qe2+ {[%clk 0:00:03]} 46. Kd6 {[%clk 0:00:29]}  Qd3+ {[%clk 0:00:03]} 47. Kc7 {[%clk 0:00:28]}  Qc4+ {[%clk 0:00:04]} 48. Kb8 {[%clk 0:00:25]}  Qf4+ {[%clk 0:00:00]} 49. Ka8 {[%clk 0:00:25]} 1-0


[Site "https://www.chess.com"]

[Event "Titled Tuesday Blitz May 16 Late 2023"]
[White "K2JW"]
[Black "Kim, Sergey"]
[BlackFideId "13700570"]
[WhiteElo "2375"]
[BlackElo "2572"]
[Result "0-1"]
[Round "08"]
[TimeControl "180+2"]
[Date "2023.05.16"]
[WhiteClock "0:00:00"]
[BlackClock "0:00:44"]

1. d4 {[%clk 0:03:00]}  Nf6 {[%clk 0:02:58]} 2. c4 {[%clk 0:03:01]}  g6 {[%clk 0:02:58]} 3. Nc3 {[%clk 0:03:01]}  Bg7 {[%clk 0:02:58]} 4. e4 {[%clk 0:03:01]}  d6 {[%clk 0:02:59]} 5. Nf3 {[%clk 0:03:01]}  O-O {[%clk 0:02:59]} 6. Be2 {[%clk 0:03:02]}  e5 {[%clk 0:03:00]} 7. Be3 {[%clk 0:03:02]}  exd4 {[%clk 0:03:00]} 8. Nxd4 {[%clk 0:03:03]}  Re8 {[%clk 0:03:00]} 9. f3 {[%clk 0:03:03]}  Nbd7 {[%clk 0:03:00]} 10. O-O {[%clk 0:03:02]}  c6 {[%clk 0:03:00]} 11. Qd2 {[%clk 0:02:55]}  a5 {[%clk 0:03:00]} 12. a3 {[%clk 0:02:37]}  a4 {[%clk 0:02:58]} 13. Rad1 {[%clk 0:02:10]}  Qa5 {[%clk 0:02:56]} 14. Nc2 {[%clk 0:01:29]}  Re6 {[%clk 0:02:54]} 15. Nd4 {[%clk 0:01:23]}  Re8 {[%clk 0:02:54]} 16. Nc2 {[%clk 0:01:23]}  Bf8 {[%clk 0:02:54]} 17. Bd3 {[%clk 0:01:06]}  Ne5 {[%clk 0:02:46]} 18. f4 {[%clk 0:01:03]}  Nxd3 {[%clk 0:02:37]} 19. Qxd3 {[%clk 0:01:04]}  Nd7 {[%clk 0:02:05]} 20. Nd4 {[%clk 0:00:56]}  Nc5 {[%clk 0:02:02]} 21. Qc2 {[%clk 0:00:56]}  Bg7 {[%clk 0:02:01]} 22. Rfe1 {[%clk 0:00:47]}  Bg4 {[%clk 0:01:53]} 23. Rd2 {[%clk 0:00:37]}  Rad8 {[%clk 0:01:52]} 24. h3 {[%clk 0:00:36]}  Bc8 {[%clk 0:01:51]} 25. Bf2 {[%clk 0:00:34]}  Qa6 {[%clk 0:01:45]} 26. Na2 {[%clk 0:00:24]}  Qa5 {[%clk 0:01:38]} 27. Qc3 {[%clk 0:00:22]}  Qc7 {[%clk 0:01:34]} 28. Qf3 {[%clk 0:00:21]}  Qe7 {[%clk 0:01:29]} 29. Nc3 {[%clk 0:00:20]}  Qf6 {[%clk 0:01:26]} 30. g4 {[%clk 0:00:18]}  Ne6 {[%clk 0:01:18]} 31. g5 {[%clk 0:00:15]}  Qe7 {[%clk 0:01:11]} 32. h4 {[%clk 0:00:13]}  Nc5 {[%clk 0:01:07]} 33. f5 {[%clk 0:00:12]}  Be5 {[%clk 0:01:06]} 34. f6 {[%clk 0:00:11]}  Qd7 {[%clk 0:01:05]} 35. Be3 {[%clk 0:00:07]}  Qg4+ {[%clk 0:01:02]} 36. Qxg4 {[%clk 0:00:07]}  Bxg4 {[%clk 0:01:02]} 37. Rg2 {[%clk 0:00:06]}  Bh3 {[%clk 0:01:00]} 38. Rd2 {[%clk 0:00:07]}  Bc8 {[%clk 0:00:53]} 39. Bf2 {[%clk 0:00:06]}  Bg4 {[%clk 0:00:48]} 40. Kg2 {[%clk 0:00:02]}  Ra8 {[%clk 0:00:48]} 41. Nf3 {[%clk 0:00:02]}  Bxf3+ {[%clk 0:00:44]} 42. Kxf3 {[%clk 0:00:02]}  Nb3 {[%clk 0:00:44]} 43. Rd3 {[%clk 0:00:00]}  h6 {[%clk 0:00:44]} 0-1


[Site "https://www.chess.com"]

[Event "Titled Tuesday Blitz May 16 Late 2023"]
[White "Shapiro, Daniel"]
[Black "Sliwicki, Damian"]
[WhiteFideId "2001780"]
[BlackFideId "1127128"]
[WhiteElo "2367"]
[BlackElo "2030"]
[Result "1-0"]
[Round "08"]
[TimeControl "180+2"]
[Date "2023.05.16"]
[WhiteClock "0:00:02"]
[BlackClock "0:00:05"]

1. d4 {[%clk 0:03:00]}  Nf6 {[%clk 0:02:20]} 2. c4 {[%clk 0:02:59]}  e5 {[%clk 0:02:20]} 3. dxe5 {[%clk 0:02:57]}  Ng4 {[%clk 0:02:17]} 4. Nf3 {[%clk 0:02:53]}  Nc6 {[%clk 0:02:17]} 5. Bf4 {[%clk 0:02:48]}  Bb4+ {[%clk 0:02:18]} 6. Nbd2 {[%clk 0:02:44]}  Qe7 {[%clk 0:02:18]} 7. a3 {[%clk 0:02:35]}  Ngxe5 {[%clk 0:02:15]} 8. Nxe5 {[%clk 0:02:31]}  Nxe5 {[%clk 0:02:15]} 9. e3 {[%clk 0:02:29]}  Bxd2+ {[%clk 0:02:14]} 10. Qxd2 {[%clk 0:02:28]}  d6 {[%clk 0:02:15]} 11. Be2 {[%clk 0:02:05]}  O-O {[%clk 0:02:07]} 12. O-O {[%clk 0:02:04]}  b6 {[%clk 0:02:06]} 13. b4 {[%clk 0:01:56]}  Bb7 {[%clk 0:02:00]} 14. Rac1 {[%clk 0:01:40]}  Rad8 {[%clk 0:01:51]} 15. Qc3 {[%clk 0:01:37]}  Qf6 {[%clk 0:01:47]} 16. c5 {[%clk 0:01:29]}  Qg6 {[%clk 0:01:36]} 17. f3 {[%clk 0:01:20]}  Rfe8 {[%clk 0:01:26]} 18. cxb6 {[%clk 0:01:09]}  cxb6 {[%clk 0:01:27]} 19. Kh1 {[%clk 0:00:58]}  Qh5 {[%clk 0:01:04]} 20. Rfd1 {[%clk 0:00:36]}  Nxf3 {[%clk 0:00:35]} 21. Qc7 {[%clk 0:00:20]}  Be4 {[%clk 0:00:25]} 22. Bxf3 {[%clk 0:00:15]}  Bxf3 {[%clk 0:00:25]} 23. gxf3 {[%clk 0:00:16]}  Qxf3+ {[%clk 0:00:25]} 24. Kg1 {[%clk 0:00:16]}  g5 {[%clk 0:00:20]} 25. Rf1 {[%clk 0:00:13]}  Qg4+ {[%clk 0:00:17]} 26. Bg3 {[%clk 0:00:13]}  Rd7 {[%clk 0:00:16]} 27. Qc4 {[%clk 0:00:10]}  Re4 {[%clk 0:00:16]} 28. Qc8+ {[%clk 0:00:07]}  Kg7 {[%clk 0:00:17]} 29. Qc3+ {[%clk 0:00:07]}  Kg8 {[%clk 0:00:15]} 30. Qc8+ {[%clk 0:00:06]}  Kg7 {[%clk 0:00:15]} 31. Qc3+ {[%clk 0:00:06]}  Re5 {[%clk 0:00:14]} 32. Qd4 {[%clk 0:00:06]}  Qxd4 {[%clk 0:00:11]} 33. exd4 {[%clk 0:00:05]}  Re3 {[%clk 0:00:12]} 34. Rc6 {[%clk 0:00:04]}  Rxa3 {[%clk 0:00:12]} 35. Rxd6 {[%clk 0:00:04]}  Re7 {[%clk 0:00:11]} 36. Be5+ {[%clk 0:00:04]}  Kf8 {[%clk 0:00:09]} 37. Rc1 {[%clk 0:00:04]}  Re8 {[%clk 0:00:09]} 38. Rc7 {[%clk 0:00:04]}  Ra2 {[%clk 0:00:08]} 39. Rdd7 {[%clk 0:00:04]}  f6 {[%clk 0:00:06]} 40. Rf7+ {[%clk 0:00:03]}  Kg8 {[%clk 0:00:06]} 41. Rg7+ {[%clk 0:00:04]}  Kh8 {[%clk 0:00:06]} 42. Rxh7+ {[%clk 0:00:04]}  Kg8 {[%clk 0:00:06]} 43. Rcg7+ {[%clk 0:00:03]}  Kf8 {[%clk 0:00:07]} 44. Bd6+ {[%clk 0:00:04]}  Re7 {[%clk 0:00:07]} 45. Bxe7+ {[%clk 0:00:04]}  Ke8 {[%clk 0:00:08]} 46. Bxf6 {[%clk 0:00:02]}  Ra1+ {[%clk 0:00:08]} 47. Kg2 {[%clk 0:00:01]}  Ra2+ {[%clk 0:00:09]} 48. Kg3 {[%clk 0:00:01]}  Ra3+ {[%clk 0:00:10]} 49. Kg4 {[%clk 0:00:01]}  Rh3 {[%clk 0:00:05]} 50. Kxh3 {[%clk 0:00:01]}  g4+ {[%clk 0:00:05]} 51. Kg3 {[%clk 0:00:02]}  Kf8 {[%clk 0:00:05]} 52. Rh8# {[%clk 0:00:02]} 1-0


[Site "https://www.chess.com"]

[Event "Titled Tuesday Blitz May 16 Late 2023"]
[White "Gerbelli Neto, Eduardo"]
[Black "Ollier, Pablo"]
[WhiteFideId "2103281"]
[BlackFideId "652318"]
[WhiteElo "2178"]
[BlackElo "2488"]
[Result "1-0"]
[Round "08"]
[TimeControl "180+2"]
[Date "2023.05.16"]
[WhiteClock "0:00:37"]
[BlackClock "0:00:00"]

1. e4 {[%clk 0:03:00]}  e5 {[%clk 0:03:00]} 2. Nf3 {[%clk 0:02:57]}  Nc6 {[%clk 0:03:00]} 3. d4 {[%clk 0:02:56]}  exd4 {[%clk 0:03:01]} 4. Bc4 {[%clk 0:02:56]}  Nf6 {[%clk 0:03:01]} 5. O-O {[%clk 0:02:56]}  Nxe4 {[%clk 0:03:01]} 6. Re1 {[%clk 0:02:56]}  d5 {[%clk 0:03:01]} 7. Nc3 {[%clk 0:02:57]}  dxc4 {[%clk 0:02:56]} 8. Rxe4+ {[%clk 0:02:57]}  Be6 {[%clk 0:02:52]} 9. Nxd4 {[%clk 0:02:57]}  Nxd4 {[%clk 0:02:50]} 10. Rxd4 {[%clk 0:02:58]}  Qf6 {[%clk 0:02:47]} 11. Nb5 {[%clk 0:02:57]}  Rc8 {[%clk 0:02:38]} 12. Nxa7 {[%clk 0:02:57]}  Qxd4 {[%clk 0:02:21]} 13. Qxd4 {[%clk 0:02:50]}  Rd8 {[%clk 0:02:20]} 14. Be3 {[%clk 0:02:36]}  Rxd4 {[%clk 0:02:15]} 15. Bxd4 {[%clk 0:02:37]}  c6 {[%clk 0:01:21]} 16. a4 {[%clk 0:02:36]}  Kd7 {[%clk 0:01:08]} 17. a5 {[%clk 0:02:31]}  Bd6 {[%clk 0:01:04]} 18. Rd1 {[%clk 0:02:26]}  Ra8 {[%clk 0:00:49]} 19. Bc5 {[%clk 0:02:22]}  Bd5 {[%clk 0:00:50]} 20. Bb6 {[%clk 0:02:07]}  Ke6 {[%clk 0:00:28]} 21. Re1+ {[%clk 0:02:00]}  Kf5 {[%clk 0:00:27]} 22. Rd1 {[%clk 0:01:46]}  Ke6 {[%clk 0:00:24]} 23. Re1+ {[%clk 0:01:22]}  Kd7 {[%clk 0:00:24]} 24. Rd1 {[%clk 0:01:21]}  Re8 {[%clk 0:00:24]} 25. Kf1 {[%clk 0:01:16]}  c3 {[%clk 0:00:18]} 26. b3 {[%clk 0:01:11]}  Re5 {[%clk 0:00:13]} 27. Bd4 {[%clk 0:00:57]}  Rh5 {[%clk 0:00:13]} 28. h3 {[%clk 0:00:56]}  Rf5 {[%clk 0:00:09]} 29. f3 {[%clk 0:00:49]}  h5 {[%clk 0:00:08]} 30. Kf2 {[%clk 0:00:49]}  Bb8 {[%clk 0:00:07]} 31. Rd3 {[%clk 0:00:41]}  h4 {[%clk 0:00:05]} 32. Rxc3 {[%clk 0:00:39]}  Bg3+ {[%clk 0:00:06]} 33. Ke2 {[%clk 0:00:39]}  Rf4 {[%clk 0:00:04]} 34. Be3 {[%clk 0:00:38]}  Rf6 {[%clk 0:00:00]} 35. Rd3 {[%clk 0:00:37]} 1-0


[Site "https://www.chess.com"]

[Event "Titled Tuesday Blitz May 16 Late 2023"]
[White "Stachanczyk, Jacek"]
[Black "Prydun, Andriy"]
[WhiteFideId "1116657"]
[BlackFideId "14145898"]
[WhiteElo "2084"]
[BlackElo "2164"]
[Result "1-0"]
[Round "08"]
[TimeControl "180+2"]
[Date "2023.05.16"]
[WhiteClock "0:01:23"]
[BlackClock "0:01:17"]

1. e4 {[%clk 0:02:59]}  c5 {[%clk 0:02:55]} 2. Nf3 {[%clk 0:02:55]}  d6 {[%clk 0:02:53]} 3. d4 {[%clk 0:02:54]}  cxd4 {[%clk 0:02:53]} 4. Nxd4 {[%clk 0:02:55]}  Nf6 {[%clk 0:02:53]} 5. Nc3 {[%clk 0:02:56]}  a6 {[%clk 0:02:53]} 6. Bg5 {[%clk 0:02:55]}  Ra7 {[%clk 0:02:43]} 7. Bxf6 {[%clk 0:02:48]}  gxf6 {[%clk 0:02:39]} 8. Qh5 {[%clk 0:02:47]}  Nc6 {[%clk 0:02:30]} 9. O-O-O {[%clk 0:02:37]}  Ne5 {[%clk 0:02:23]} 10. f4 {[%clk 0:02:29]}  Bg4 {[%clk 0:02:22]} 11. Qh4 {[%clk 0:02:24]}  Bxd1 {[%clk 0:02:21]} 12. fxe5 {[%clk 0:02:21]}  dxe5 {[%clk 0:02:12]} 13. Ndb5 {[%clk 0:01:50]}  h5 {[%clk 0:02:11]} 14. Nxa7 {[%clk 0:01:43]}  Bh6+ {[%clk 0:02:11]} 15. Kb1 {[%clk 0:01:43]}  Qd2 {[%clk 0:02:10]} 16. Bb5+ {[%clk 0:01:38]}  axb5 {[%clk 0:01:57]} 17. Rxd1 {[%clk 0:01:38]}  Bg5 {[%clk 0:01:29]} 18. Rxd2 {[%clk 0:01:37]}  Bxh4 {[%clk 0:01:28]} 19. Naxb5 {[%clk 0:01:37]}  O-O {[%clk 0:01:28]} 20. Rd7 {[%clk 0:01:36]}  e6 {[%clk 0:01:28]} 21. Rxb7 {[%clk 0:01:35]}  f5 {[%clk 0:01:28]} 22. a4 {[%clk 0:01:34]}  fxe4 {[%clk 0:01:22]} 23. Nxe4 {[%clk 0:01:33]}  f5 {[%clk 0:01:22]} 24. Nc5 {[%clk 0:01:33]}  Re8 {[%clk 0:01:21]} 25. a5 {[%clk 0:01:33]}  e4 {[%clk 0:01:21]} 26. a6 {[%clk 0:01:31]}  Bf2 {[%clk 0:01:20]} 27. a7 {[%clk 0:01:25]}  Bxc5 {[%clk 0:01:20]} 28. Rb8 {[%clk 0:01:25]}  Bxa7 {[%clk 0:01:21]} 29. Rxe8+ {[%clk 0:01:25]}  Kf7 {[%clk 0:01:21]} 30. Ra8 {[%clk 0:01:25]}  e3 {[%clk 0:01:21]} 31. Rxa7+ {[%clk 0:01:22]}  Kf8 {[%clk 0:01:17]} 32. Nc3 {[%clk 0:01:23]} 1-0


[Site "https://www.chess.com"]

[Event "Titled Tuesday Blitz May 16 Late 2023"]
[White "lluiss"]
[Black "Araujo, Everson De Moura"]
[BlackFideId "22737197"]
[WhiteElo "2287"]
[BlackElo "2035"]
[Result "1-0"]
[Round "08"]
[TimeControl "180+2"]
[Date "2023.05.16"]
[WhiteClock "0:00:23"]
[BlackClock "0:00:31"]

1. Nf3 {[%clk 0:03:00]}  Nf6 {[%clk 0:02:59]} 2. c4 {[%clk 0:03:00]}  e6 {[%clk 0:02:57]} 3. b3 {[%clk 0:02:59]}  d5 {[%clk 0:02:58]} 4. Bb2 {[%clk 0:02:59]}  c5 {[%clk 0:02:58]} 5. e3 {[%clk 0:02:58]}  Nc6 {[%clk 0:02:58]} 6. cxd5 {[%clk 0:02:58]}  exd5 {[%clk 0:02:57]} 7. Bb5 {[%clk 0:02:58]}  Be7 {[%clk 0:02:53]} 8. O-O {[%clk 0:02:57]}  O-O {[%clk 0:02:52]} 9. d4 {[%clk 0:02:57]}  a6 {[%clk 0:02:41]} 10. Be2 {[%clk 0:02:55]}  cxd4 {[%clk 0:02:35]} 11. Nxd4 {[%clk 0:02:54]}  Ne4 {[%clk 0:02:32]} 12. Nxc6 {[%clk 0:02:45]}  bxc6 {[%clk 0:02:30]} 13. Nd2 {[%clk 0:02:43]}  Bf5 {[%clk 0:02:17]} 14. Rc1 {[%clk 0:02:32]}  Rc8 {[%clk 0:01:59]} 15. Nxe4 {[%clk 0:02:11]}  Bxe4 {[%clk 0:01:58]} 16. Bxa6 {[%clk 0:02:03]}  Ra8 {[%clk 0:01:47]} 17. Qe2 {[%clk 0:02:02]}  Qd6 {[%clk 0:01:41]} 18. a3 {[%clk 0:01:46]}  Qg6 {[%clk 0:01:40]} 19. f3 {[%clk 0:01:35]}  Rxa6 {[%clk 0:01:39]} 20. Qxa6 {[%clk 0:01:34]}  Bd3 {[%clk 0:01:39]} 21. Qxc6 {[%clk 0:01:32]}  Bxf1 {[%clk 0:01:34]} 22. Qxg6 {[%clk 0:01:26]}  hxg6 {[%clk 0:01:16]} 23. Kxf1 {[%clk 0:01:25]}  Ra8 {[%clk 0:01:15]} 24. b4 {[%clk 0:01:25]}  Kf8 {[%clk 0:01:13]} 25. Ke2 {[%clk 0:01:20]}  Ke8 {[%clk 0:01:12]} 26. Kd3 {[%clk 0:01:16]}  f6 {[%clk 0:01:10]} 27. Kc2 {[%clk 0:01:12]}  Bd6 {[%clk 0:01:10]} 28. Kb3 {[%clk 0:01:05]}  Kd7 {[%clk 0:01:09]} 29. h3 {[%clk 0:01:00]}  Re8 {[%clk 0:01:06]} 30. Bd4 {[%clk 0:01:00]}  Rb8 {[%clk 0:01:05]} 31. Bc5 {[%clk 0:00:59]}  Bg3 {[%clk 0:01:02]} 32. a4 {[%clk 0:00:58]}  f5 {[%clk 0:00:54]} 33. b5 {[%clk 0:00:57]}  g5 {[%clk 0:00:53]} 34. Kb4 {[%clk 0:00:51]}  g4 {[%clk 0:00:51]} 35. a5 {[%clk 0:00:45]}  gxf3 {[%clk 0:00:48]} 36. gxf3 {[%clk 0:00:45]}  g5 {[%clk 0:00:49]} 37. a6 {[%clk 0:00:39]}  Bc7 {[%clk 0:00:46]} 38. a7 {[%clk 0:00:33]}  Ra8 {[%clk 0:00:46]} 39. b6 {[%clk 0:00:33]}  Be5 {[%clk 0:00:43]} 40. Kb5 {[%clk 0:00:33]}  f4 {[%clk 0:00:42]} 41. exf4 {[%clk 0:00:32]}  Bxf4 {[%clk 0:00:42]} 42. Rd1 {[%clk 0:00:31]}  Ke6 {[%clk 0:00:42]} 43. Ka6 {[%clk 0:00:30]}  Rc8 {[%clk 0:00:40]} 44. Kb5 {[%clk 0:00:24]}  Ra8 {[%clk 0:00:31]} 45. b7 {[%clk 0:00:23]} 1-0


[Site "https://www.chess.com"]